bitfinex-derivatives/quotes_ETHF0:USTF0_20210402
["timestamp","ask_amount","ask_price","bid_price","bid_amount"]
[1617397000394,2.90695,2089.6,2088.8,0.9716]
[1617397000594,2.90695,2089.6,2089.5,2.90695]
[1617397002403,2.25665,2090.7,2089.9,70.8947]
[1617397002603,2.90695,2090.0,2089.9,73.80165]
[1617397003006,0.98335,2090.7,2089.9,73.80165]
[1617397003209,0.98335,2090.7,2090.6,57.2064]
[1617397004601,0.98335,2090.7,2090.6,60.11335]
[1617397005002,0.02945,2090.7,2090.6,60.11335]
[1617397007108,0.02945,2090.7,2090.6,2.90695]
[1617397011320,1.71455,2090.7,2090.6,2.90695]
[1617397011728,1.71455,2090.7,2090.3,60.1743]
[1617397012718,2.90695,2090.4,2090.3,60.1743]
[1617397016920,2.90695,2090.4,2088.8,0.9716]
[1617397017119,2.90695,2090.4,2089.1,55.505]
[1617397018120,2.0,2090.3,2089.1,55.505]
[1617397018820,2.90695,2089.2,2089.1,55.505]
[1617397019021,4.74835,2089.2,2089.1,55.505]
[1617397019220,1.8414,2089.2,2089.1,55.505]
[1617397020721,4.74835,2089.2,2089.1,55.505]
[1617397025126,1.8414,2089.2,2089.1,55.505]
[1617397025326,1.6507,2089.7,2089.1,55.505]
[1617397025927,17.74075,2090.7,2089.1,55.505]
[1617397026330,15.74075,2090.7,2089.1,57.2149]
[1617397026730,15.74075,2090.7,2090.1,2.90695]
[1617397028732,2.90695,2090.2,2089.9,71.2589]
[1617397029135,4.28415,2090.2,2089.9,71.2589]
[1617397029335,4.28415,2090.2,2088.9,69.5239]
[1617397029834,4.28415,2090.2,2089.0,2.0]
[1617397030834,1.3772,2090.2,2089.8,2.90695]
[1617397031934,1.3772,2090.2,2089.7,79.9766]
[1617397032936,2.90695,2089.8,2089.7,79.9766]
[1617397035636,2.90695,2089.8,2088.8,97.1144]
[1617397035837,2.90695,2089.8,2085.3,4.7308897]
[1617397035838,2.90695,2089.8,2087.9,3.1]
[1617397036037,2.90695,2089.8,2088.8,60.5974]
[1617397036339,3.6481,2089.7,2088.8,60.5974]
[1617397037140,2.90695,2088.9,2088.8,60.5974]
[1617397037340,4.50225,2088.9,2088.5,2.90695]
[1617397037541,4.50225,2088.9,2088.0,77.3159]
[1617397038439,4.50225,2088.9,2088.0,76.3614]
[1617397039241,2.90695,2088.5,2088.4,2.90695]
[1617397039641,2.90695,2088.5,2088.0,76.3614]
[1617397040444,2.90695,2088.5,2088.0,77.3101]
[1617397040644,2.90695,2088.5,2088.0,76.3614]
[1617397041245,1.5953,2088.9,2088.3,2.90695]
[1617397042849,77.2756,2089.2,2088.3,2.90695]
[1617397043251,4.68055,2088.4,2088.3,2.90695]
[1617397049462,2.90695,2088.4,2088.3,2.90695]
[1617397050062,77.2756,2089.2,2088.3,2.90695]
[1617397050263,1.7098,2089.1,2088.3,2.90695]
[1617397051262,1.7098,2089.1,2089.0,2.90695]
[1617397051462,14.0616,2089.6,2089.0,3.86205]
[1617397052968,14.0616,2089.6,2088.7,67.5014]
[1617397053169,15.6465,2089.6,2088.9,2.90695]
[1617397053970,2.0,2089.5,2088.9,3.87775]
[1617397055370,4.72845,2089.0,2088.9,3.87775]
[1617397055570,4.72845,2089.0,2088.9,0.9708]
[1617397055771,4.72845,2089.0,2088.7,67.5014]
[1617397055970,4.72845,2089.0,2088.0,0.9595]
[1617397056171,4.72845,2089.0,2088.0,62.8657]
[1617397057372,2.90695,2088.4,2088.3,2.90695]
[1617397057575,4.52875,2088.4,2088.3,2.90695]
[1617397057972,4.21635,2088.4,2088.3,2.90695]
[1617397058372,1.6218,2088.4,2088.3,2.90695]
[1617397060875,2.90695,2088.9,2088.3,2.90695]
[1617397061477,2.90695,2088.9,2088.8,2.90695]
[1617397061976,2.56845,2088.9,2088.8,2.90695]
[1617397062976,4.21135,2088.9,2088.0,0.9595]
[1617397063176,4.21135,2088.9,2088.3,70.7139]
[1617397063376,1.6429,2088.9,2088.5,2.90695]
[1617397064477,1.6429,2088.9,2088.3,70.7139]
[1617397065379,2.90695,2088.4,2088.3,73.62085]
[1617397065578,4.45805,2088.4,2088.3,73.62085]
[1617397066478,1.5511,2088.4,2088.3,73.62085]
[1617397068583,1.6429,2088.9,2088.3,73.62085]
[1617397068782,2.0,2089.5,2088.3,73.62085]
[1617397069083,94.2949,2089.6,2088.3,73.62085]
[1617397069484,94.2949,2089.6,2088.9,2.90695]
[1617397069684,14.0616,2089.6,2088.9,3.87815]
[1617397069885,14.0616,2089.6,2089.1,64.8316]
[1617397071086,14.0616,2089.6,2089.2,0.23378482]
[1617397071486,14.0616,2089.6,2089.3,2.90695]
[1617397072187,14.0616,2089.6,2089.4,0.23378114]
[1617397073396,2.90695,2089.5,2089.4,0.23378114]
[1617397074493,2.68785,2089.5,2089.4,0.23378114]
[1617397081100,2.59015,2089.5,2089.4,0.23378114]
[1617397086801,14.0616,2089.6,2089.4,0.23378114]
[1617397090605,1.97105,2090.1,2089.6,53.7459]
[1617397090805,1.91025,2090.1,2089.6,53.7459]
[1617397091206,1.91025,2090.1,2089.7,0.23399263]
[1617397091406,1.91025,2090.1,2089.6,40.97989263]
[1617397091608,1.91025,2090.1,2090.0,2.90695]
[1617397091806,1.91025,2090.1,2090.0,3.86485]
[1617397092406,92.9827,2090.8,2090.0,3.86485]
[1617397092606,13.3926,2090.8,2090.0,3.86485]
[1617397092806,13.3926,2090.8,2090.3,60.3431]
[1617397093606,13.3926,2090.8,2090.6,2.90695]
[1617397094210,76.2583,2090.8,2090.6,2.90695]
[1617397094411,78.2583,2090.8,2090.6,2.90695]
[1617397095711,2.9364,2090.7,2090.0,2.90695]
[1617397095912,4.9364,2090.7,2090.0,2.90695]
[1617397097820,2.90695,2090.1,2090.0,2.90695]
[1617397100423,2.90695,2090.1,2090.0,3.14011355]
[1617397102724,0.02945,2090.7,2090.0,3.14011355]
[1617397102924,0.02945,2090.7,2090.0,4.38341355]
[1617397103525,0.02945,2090.7,2090.1,0.23309681]
[1617397103725,0.02945,2090.7,2090.6,2.90695]
[1617397103925,0.02945,2090.7,2090.6,3.85785]
[1617397104125,0.02945,2090.7,2090.6,2.90695]
[1617397104726,0.02945,2090.7,2090.6,67.89785]
[1617397106241,0.02945,2090.7,2090.6,2.90695]
[1617397109434,0.02945,2090.7,2090.4,0.9561]
[1617397109634,0.02945,2090.7,2089.9,0.9544]
[1617397109833,0.02945,2090.7,2090.3,2.90695]
[1617397110633,56.585,2090.3,2089.9,0.9544]
[1617397110833,56.585,2090.3,2089.2,0.9659]
[1617397110834,1.7972,2090.3,2089.2,0.9659]
[1617397111034,60.6681,2089.9,2088.9,0.9712]
[1617397111233,60.6681,2089.9,2089.3,0.23291984]
[1617397111434,2.0,2089.8,2089.3,0.23291984]
[1617397111634,2.0,2089.8,2073.9,30.0]
[1617397111635,2.0,2089.8,2089.0,0.23295333]
[1617397111834,3.2945,2089.8,2089.0,0.23295333]
[1617397112035,3.2945,2089.8,2088.1,2.571]
[1617397112036,58.1499,2089.0,2088.1,2.571]
[1617397112236,59.6708,2089.0,2088.6,0.23016155]
[1617397112636,59.6708,2089.0,2088.6,0.9702]
[1617397112837,59.6708,2089.0,2088.7,0.23016944]
[1617397113841,2.90695,2088.8,2088.5,2.90695]
[1617397114240,2.90695,2088.8,2088.6,0.23019818]
[1617397114640,2.90695,2088.8,2088.5,2.90695]
[1617397122950,2.90695,2088.8,2088.6,0.23002903]
[1617397123351,2.90695,2088.8,2088.5,2.90695]
[1617397126255,1.25805,2088.8,2088.5,2.90695]
[1617397127256,3.2945,2089.8,2088.5,2.90695]
[1617397127257,2.0,2089.8,2088.5,2.90695]
[1617397127461,12.7858,2089.9,2089.1,74.4943]
[1617397127855,12.7858,2089.9,2089.7,2.90695]
[1617397128057,12.7858,2089.9,2089.1,74.4943]
[1617397129857,12.7858,2089.9,2089.5,2.90695]
[1617397130258,12.7858,2089.9,2089.1,74.4943]
[1617397132064,12.7858,2089.9,2089.4,2.90695]
[1617397134066,2.90695,2089.5,2089.4,2.90695]
[1617397136768,2.90695,2089.5,2089.1,74.4943]
[1617397138271,2.90695,2089.5,2089.4,2.90695]
[1617397140773,65.45565,2089.5,2089.4,2.90695]
[1617397143678,2.90695,2089.5,2089.4,2.90695]
[1617397143889,13.0,2089.8,2089.4,2.90695]
[1617397144078,13.0,2089.8,2089.7,54.1669]
[1617397144281,13.0,2089.8,2089.7,57.07385]
[1617397146282,13.0,2089.8,2089.7,58.48755]
[1617397148987,13.0,2089.8,2089.7,57.07385]
[1617397154994,13.0,2089.8,2089.7,2.90695]
[1617397162005,12.98,2089.8,2089.7,2.90695]
[1617397163809,12.98,2089.8,2089.7,3.13806706]
[1617397172122,12.98,2089.8,2089.7,0.23111706]
[1617397172524,15.88695,2089.8,2089.3,2.90695]
[1617397172923,15.88695,2089.8,2089.4,0.23120465]
[1617397173926,15.88695,2089.8,2089.1,0.23121275]
[1617397174126,15.88695,2089.8,2089.0,59.9171]
[1617397174328,62.6894,2089.4,2089.0,59.9171]
[1617397174526,65.59635,2089.4,2089.3,2.90695]
[1617397174926,65.59635,2089.4,2089.3,3.13818856]
[1617397175129,65.59635,2089.4,2089.3,4.09738856]
[1617397176527,65.59635,2089.4,2089.3,3.13818856]
[1617397178930,65.07315,2089.4,2089.3,3.13818856]
[1617397179832,4.64815,2089.4,2089.3,3.13818856]
[1617397180632,4.64815,2089.4,2089.3,0.23123856]
[1617397181032,4.64815,2089.4,2089.1,0.23128747]
[1617397182234,4.64815,2089.4,2088.9,0.23144442]
[1617397182636,2.90695,2089.0,2088.9,0.23144442]
[1617397186942,57.6237,2088.9,2088.2,80.6275]
[1617397187144,59.3113,2088.9,2088.2,80.6275]
[1617397187342,30.0,2088.8,2088.2,80.6275]
[1617397187742,2.0,2088.7,2088.2,78.0565]
[1617397188846,4.50575,2088.3,2088.2,78.0565]
[1617397192146,4.50575,2088.3,2088.2,78.28467328]
[1617397193049,4.50575,2088.3,2088.2,78.0565]
[1617397194247,4.50575,2088.3,2088.2,77.2373]
[1617397202754,4.50575,2088.3,2088.2,80.14425]
[1617397203855,4.50575,2088.3,2088.2,77.2373]
[1617397204758,4.50575,2088.3,2088.2,80.14425]
[1617397205354,4.50575,2088.3,2088.2,2.90695]
[1617397205557,63.19475,2088.3,2088.2,2.90695]
[1617397207360,4.50575,2088.3,2088.2,2.90695]
[1617397209071,4.50575,2088.3,2088.2,3.87705]
[1617397209672,4.50575,2088.3,2088.2,2.90695]
[1617397214480,5.46545,2088.3,2088.2,2.90695]
[1617397214676,4.50575,2088.3,2088.2,2.90695]
[1617397219480,4.50575,2088.3,2087.4,2.571]
[1617397220084,4.50575,2088.3,2087.4,3.5314]
[1617397220482,71.7945,2087.6,2087.4,2.571]
[1617397220690,73.4149,2087.6,2087.4,2.571]
[1617397220891,63.1306,2087.6,2087.5,2.90695]
[1617397221090,55.8107,2087.6,2087.5,2.90695]
[1617397221293,53.7306,2087.6,2087.5,2.90695]
[1617397221492,52.3,2087.6,2087.5,2.90695]
[1617397222193,51.13,2087.6,2087.5,2.90695]
[1617397225996,1.6204,2087.6,2087.5,2.90695]
[1617397226197,2.90695,2087.7,2087.5,2.90695]
[1617397226398,1.3873,2087.6,2087.5,2.90695]
[1617397230798,1.3873,2087.6,2087.5,3.13717844]
[1617397231600,2.90695,2087.7,2087.5,3.13717844]
[1617397231999,2.90695,2087.7,2087.6,0.23023415]
[1617397232199,2.90695,2087.7,2087.5,2.90695]
[1617397232399,56.6031,2087.5,2086.2,7.669]
[1617397233001,56.6031,2087.5,2086.3,0.23027565]
[1617397233402,58.6031,2087.5,2086.3,0.23027565]
[1617397234303,58.6031,2087.5,2086.3,1.18097565]
[1617397234503,58.6031,2087.5,2086.3,0.23027565]
[1617397234902,58.6031,2087.5,2086.4,0.22848323]
[1617397235103,58.6031,2087.5,2086.6,2.90695]
[1617397235301,58.6031,2087.5,2086.7,0.22848503]
[1617397235602,2.0,2087.5,2086.7,0.22848503]
[1617397236002,69.2036,2087.1,2086.7,0.22848503]
[1617397236202,70.6007,2087.1,2086.7,0.22848503]
[1617397237004,2.90695,2086.8,2086.7,0.22848503]
[1617397238602,2.90695,2086.8,2086.2,2.571]
[1617397239004,2.90695,2086.3,2086.2,2.571]
[1617397239204,4.55445,2086.3,2085.4,7.39559953]
[1617397239403,59.7097,2085.5,2085.4,7.39559953]
[1617397239606,61.5263,2085.5,2085.4,2.571]
[1617397240606,61.5263,2085.5,2084.9,75.8092]
[1617397241008,64.43325,2085.5,2085.4,2.90695]
[1617397241607,64.43325,2085.5,2084.9,75.8092]
[1617397242307,4.72355,2085.5,2084.0,3.5317]
[1617397242509,65.4208,2084.8,2084.0,3.5283]
[1617397243009,65.4208,2084.8,2084.6,2.90695]
[1617397243811,65.4208,2084.8,2084.7,0.22778698]
[1617397244215,65.4208,2084.8,2083.1,69.66801581]
[1617397244416,65.4208,2084.8,2083.1,68.69931581]
[1617397244617,1.6449,2084.8,2082.8,5.91727636]
[1617397244816,1.6449,2084.8,2082.6,5.91608206]
[1617397244817,78.822,2083.9,2082.6,5.91608206]
[1617397245014,78.822,2083.9,2083.8,2.90695]
[1617397247020,81.72895,2083.9,2083.8,2.90695]
[1617397247519,4.89075,2083.9,2083.8,2.90695]
[1617397247919,2.90695,2083.9,2083.8,2.90695]
[1617397249321,2.90695,2083.9,2083.8,3.13104935]
[1617397250924,1.5093,2084.3,2083.8,3.13104935]
[1617397251124,1.6449,2084.8,2084.2,2.90695]
[1617397251325,58.3701,2085.0,2084.2,2.90695]
[1617397251524,58.3701,2085.0,2083.7,72.7376]
[1617397251725,59.9648,2085.0,2083.7,72.7376]
[1617397252925,58.3701,2085.0,2083.7,72.7376]
[1617397253125,58.3701,2085.0,2084.2,2.90695]
[1617397254127,59.3297,2085.0,2084.2,2.90695]
[1617397254325,58.3701,2085.0,2084.2,4.43815]
[1617397254729,30.0,2085.3,2084.2,4.43815]
[1617397254927,30.0,2085.3,2084.4,66.2902]
[1617397255127,2.90695,2084.5,2084.4,66.2902]
[1617397256057,13.6204,2085.4,2084.4,66.2902]
[1617397256243,13.6204,2085.4,2084.4,69.254]
[1617397256730,13.6204,2085.4,2084.4,68.2902]
[1617397257130,13.6204,2085.4,2085.2,2.90695]
[1617397257731,13.6204,2085.4,2085.3,75.1525]
[1617397259135,16.52735,2085.4,2085.3,75.1525]
[1617397259335,13.6204,2085.4,2085.3,75.1525]
[1617397262335,0.05525905,2090.2,2085.3,75.1525]
[1617397262336,0.05523282,2090.6,2085.3,75.1525]
[1617397262535,13.3086,2087.9,2085.3,2.0]
[1617397262737,128.004,2087.9,2085.5,2.0]
[1617397263136,128.004,2087.9,2086.7,4.18905]
[1617397263334,55.9731,2087.9,2086.7,4.18905]
[1617397263536,55.9731,2087.9,2086.8,66.5184]
[1617397264937,25.9731,2087.9,2086.8,66.5184]
[1617397265138,2.90695,2086.9,2086.8,66.5184]
[1617397266138,25.9731,2087.9,2086.8,66.5184]
[1617397266539,25.9731,2087.9,2086.8,67.4771]
[1617397266739,25.9731,2087.9,2086.8,69.4771]
[1617397266945,25.9731,2087.9,2086.8,68.5184]
[1617397267141,25.9731,2087.9,2087.5,2.90695]
[1617397267762,25.9731,2087.9,2087.7,77.2915]
[1617397267974,25.9731,2087.9,2087.7,79.1464]
[1617397269044,25.9731,2087.9,2087.7,77.2915]
[1617397269244,25.9731,2087.9,2087.8,2.90695]
[1617397269846,12.6645,2087.9,2087.8,2.90695]
[1617397270047,12.6645,2087.9,2087.8,4.19235]
[1617397270247,12.4277,2087.9,2087.8,6.19235]
[1617397275048,12.4277,2087.9,2087.8,2.90695]
[1617397275449,14.3959,2087.9,2087.8,2.90695]
[1617397275649,14.3959,2087.9,2087.7,77.2915]
[1617397277251,14.3959,2087.9,2087.8,2.90695]
[1617397278149,14.3959,2087.9,2087.7,77.2915]
[1617397279351,2.90695,2087.8,2087.2,2.90695]
[1617397279550,2.90695,2087.8,2086.4,62.6155]
[1617397279950,32.90695,2087.8,2085.6,2.0]
[1617397280151,58.3286,2087.3,2085.6,2.0]
[1617397280351,59.7991,2087.3,2085.6,2.0]
[1617397280551,59.7991,2087.3,2085.5,2.571]
[1617397280751,59.7991,2087.3,2085.2,72.2301]
[1617397281152,59.7991,2087.3,2085.8,2.90695]
[1617397281351,89.7991,2087.3,2085.8,2.90695]
[1617397282252,89.7991,2087.3,2085.2,72.2301]
[1617397282454,2.0,2087.2,2085.2,72.2301]
[1617397282653,2.0,2087.0,2085.2,72.2301]
[1617397282853,32.0,2087.0,2085.2,72.2301]
[1617397283054,32.0,2087.0,2084.5,2.0]
[1617397283254,32.0,2087.0,2085.2,2.90695]
[1617397283456,32.0,2087.0,2084.4,3.5267]
[1617397283457,2.0,2086.2,2084.4,3.5267]
[1617397283656,32.0,2086.2,2083.9,2.0]
[1617397285759,65.5665,2085.2,2083.1,0.9547]
[1617397285959,67.5598,2085.2,2083.0,2.0]
[1617397287379,67.5598,2085.2,2084.4,2.90695]
[1617397287774,1.9933,2085.2,2084.4,2.90695]
[1617397287976,68.7097,2085.6,2084.4,2.90695]
[1617397289361,68.7097,2085.6,2084.2,1.3559]
[1617397289362,16.26155,2085.7,2085.3,4.55425]
[1617397290263,13.3546,2085.7,2085.3,4.55425]
[1617397291266,2.90695,2085.4,2084.9,73.1778]
[1617397292185,13.3546,2085.7,2084.9,73.1778]
[1617397292382,13.3546,2085.7,2084.9,75.0688]
[1617397293274,13.3546,2085.7,2085.3,2.90695]
[1617397293974,13.3546,2085.7,2084.9,75.0688]
[1617397294174,13.3546,2085.7,2084.9,73.1778]
[1617397295375,13.3546,2085.7,2085.6,2.90695]
[1617397295575,13.3546,2085.7,2085.6,4.85985]
[1617397297876,13.9955,2087.1,2085.7,63.3887]
[1617397298877,13.9955,2087.1,2085.8,2.0]
[1617397299275,13.9955,2087.1,2086.5,2.90695]
[1617397301378,13.9955,2087.1,2087.0,2.90695]
[1617397301579,13.9955,2087.1,2087.0,4.50945]
[1617397301777,13.9955,2087.1,2087.0,6.50945]
[1617397303279,13.7648,2088.2,2087.0,6.50945]
[1617397303480,16.67175,2088.2,2087.0,6.50945]
[1617397303879,13.7648,2088.2,2087.0,6.50945]
[1617397304080,13.7648,2088.2,2087.8,62.9238]
[1617397304279,13.7648,2088.2,2087.8,66.8495]
[1617397305482,13.7648,2088.2,2088.1,2.90695]
[1617397307380,16.67175,2088.2,2088.1,2.90695]
[1617397307981,18.30785,2088.2,2087.8,62.9238]
[1617397308581,18.30785,2088.2,2086.4,2.0]
[1617397308782,18.30785,2088.2,2086.4,78.9886]
[1617397309485,15.4009,2088.2,2087.5,2.90695]
[1617397311388,15.4009,2088.2,2087.8,2.90695]
[1617397311788,15.4009,2088.2,2087.4,57.5561]
[1617397313390,15.4009,2088.2,2087.7,2.90695]
[1617397313789,15.4009,2088.2,2087.4,57.5561]
[1617397315491,15.4009,2088.2,2087.7,2.90695]
[1617397315692,13.7648,2088.2,2087.7,2.90695]
[1617397317194,13.7648,2088.2,2087.7,4.63055]
[1617397317494,13.7648,2088.2,2088.1,2.90695]
[1617397320695,13.7648,2088.2,2087.4,57.5561]
[1617397321495,13.7648,2088.2,2087.7,2.90695]
[1617397322997,13.7648,2088.2,2087.4,57.5561]
[1617397323199,15.0561,2088.2,2086.6,2.0]
[1617397323399,15.0561,2088.2,2086.4,2.571]
[1617397323613,15.0561,2088.2,2087.3,63.16095]
[1617397325499,15.0561,2088.2,2087.9,2.90695]
[1617397327512,2.90695,2088.1,2087.9,2.90695]
[1617397327903,2.90695,2088.1,2087.3,60.254]
[1617397328502,13.7648,2088.2,2087.3,60.254]
[1617397329503,13.7648,2088.2,2088.1,2.90695]
[1617397331507,16.67175,2088.2,2088.1,2.90695]
[1617397332409,16.67175,2088.2,2087.3,60.254]
[1617397332611,18.41275,2088.2,2086.4,2.571]
[1617397332809,81.75625,2088.2,2086.5,63.9041]
[1617397333609,78.8493,2088.2,2087.4,2.90695]
[1617397334009,78.8493,2088.2,2086.5,63.9041]
[1617397335515,108.8493,2088.2,2086.8,2.90695]
[1617397335714,2.0,2088.1,2086.8,2.90695]
[1617397335913,30.0,2088.0,2086.8,2.90695]
[1617397336117,2.0,2087.9,2086.8,2.90695]
[1617397337623,2.90695,2086.9,2086.8,2.90695]
[1617397340022,77.1083,2088.2,2086.8,4.26795]
[1617397340422,13.7648,2088.2,2087.2,74.3002]
[1617397340821,15.7648,2088.2,2087.2,74.3002]
[1617397341122,15.7648,2088.2,2086.8,4.26795]
[1617397341522,60.0397,2088.0,2086.8,2.90695]
[1617397341724,60.0397,2088.0,2086.2,81.8378]
[1617397341725,2.90695,2086.9,2086.2,81.8378]
[1617397342523,2.90695,2086.9,2086.2,79.8378]
[1617397343323,4.52635,2086.9,2086.2,79.8378]
[1617397343725,1.6194,2086.9,2086.4,2.90695]
[1617397344830,1.6194,2086.9,2086.2,79.8378]
[1617397345427,30.0,2087.8,2086.2,79.8378]
[1617397345629,30.0,2087.8,2086.7,2.90695]
[1617397346027,30.0,2087.8,2086.3,1.7095]
[1617397346631,30.0,2087.8,2086.4,0.22687068]
[1617397347031,2.0,2087.7,2086.4,0.22687068]
[1617397347230,2.0,2087.7,2086.3,0.2268767]
[1617397347430,32.0,2087.7,2086.3,0.2268767]
[1617397347630,32.0,2087.7,2086.3,2.90695]
[1617397347631,2.90695,2086.4,2086.3,2.90695]
[1617397348031,2.90695,2086.4,2086.3,3.13384036]
[1617397349931,2.90695,2086.4,2086.3,0.22689036]
[1617397350732,2.90695,2086.4,2086.2,79.8378]
[1617397351535,2.90695,2086.4,2086.3,0.22689129]
[1617397354435,12.74,2087.9,2086.3,2.22689129]
[1617397354636,12.74,2087.9,2086.3,1.70529129]
[1617397354838,12.74,2087.9,2086.4,0.22684612]
[1617397355837,12.74,2087.9,2087.0,55.8903]
[1617397357740,12.74,2087.9,2087.2,2.90695]
[1617397359743,2.90695,2087.3,2087.2,2.90695]
[1617397360241,2.90695,2087.3,2087.2,3.13358533]
[1617397361144,12.74,2087.9,2087.2,3.13358533]
[1617397361544,12.74,2087.9,2087.3,0.226608]
[1617397361744,15.64695,2087.9,2087.8,2.90695]
[1617397361944,15.64695,2087.9,2087.8,4.60835]
[1617397371154,12.74,2087.9,2087.8,4.60835]
[1617397371955,12.74,2087.9,2087.8,4.83470219]
[1617397374256,2.90695,2088.5,2087.8,4.83470219]
[1617397374458,2.90695,2088.5,2088.1,59.8905]
[1617397375857,2.90695,2088.5,2088.4,4.90875]
[1617397381962,2.90695,2088.5,2088.4,2.90695]
[1617397385468,0.9573,2089.0,2088.4,2.90695]
[1617397385667,27.9139,2089.4,2088.4,2.90695]
[1617397385864,27.9139,2089.4,2088.7,2.90695]
[1617397386065,27.9139,2089.4,2088.7,79.68425]
[1617397387967,2.90695,2088.8,2088.7,79.68425]
[1617397388167,2.90695,2088.8,2088.7,2.90695]
[1617397397881,2.90695,2088.8,2088.1,73.4663]
[1617397398082,2.90695,2088.2,2088.1,2.90695]
[1617397398283,4.60385,2088.2,2087.1,65.659]
[1617397400086,2.90695,2087.2,2087.1,65.659]
[1617397400286,2.90695,2087.2,2086.4,2.0]
[1617397400287,4.81765,2087.2,2086.6,4.90518254]
[1617397400488,4.81765,2087.2,2086.5,4.90826336]
[1617397400886,4.81765,2087.2,2086.6,0.22519516]
[1617397401286,55.5542,2086.8,2086.4,0.22523592]
[1617397401686,55.5542,2086.8,2086.3,2.571]
[1617397402086,55.5542,2086.8,2086.4,2.90695]
[1617397402286,55.5542,2086.8,2086.3,2.571]
[1617397402687,55.5542,2086.8,2085.9,4.91630345]
[1617397402888,55.5542,2086.8,2085.7,4.91931862]
[1617397403091,55.5542,2086.8,2085.8,0.22529728]
[1617397403891,55.5542,2086.8,2085.7,0.22568436]
[1617397404091,55.5542,2086.8,2086.3,2.90695]
[1617397404491,55.5542,2086.8,2086.4,0.22567764]
[1617397406194,55.5542,2086.8,2086.6,2.90695]
[1617397407706,61.1527,2087.7,2086.6,2.90695]
[1617397407896,59.1527,2087.7,2086.6,2.90695]
[1617397408121,2.90695,2086.7,2086.6,2.90695]
[1617397408897,2.90695,2086.7,2086.6,3.13260779]
[1617397410906,2.90695,2086.7,2086.6,2.90695]
[1617397414107,2.90695,2086.7,2086.6,4.22015]
[1617397415411,59.1527,2087.7,2086.6,4.22015]
[1617397415611,12.9902,2088.0,2086.6,4.22015]
[1617397416011,12.9902,2088.0,2086.7,0.2254164]
[1617397416212,12.9902,2088.0,2087.6,2.90695]
[1617397416411,12.9902,2088.0,2087.6,4.29935]
[1617397418113,12.9902,2088.0,2087.9,2.90695]
[1617397420217,15.89715,2088.0,2087.9,2.90695]
[1617397421319,15.89715,2088.0,2087.9,58.27075]
[1617397428518,12.9902,2088.0,2087.9,58.27075]
[1617397434821,12.9902,2088.0,2087.9,58.4966212]
[1617397436226,12.9902,2088.0,2087.9,58.27075]
[1617397437125,12.9902,2088.0,2087.9,58.49662612]
[1617397437526,12.9902,2088.0,2087.9,58.27075]
[1617397437725,12.9902,2088.0,2087.9,58.49616829]
[1617397438026,12.9902,2088.0,2087.9,58.27075]
[1617397438526,12.9902,2088.0,2087.9,58.49617176]
[1617397439629,12.9902,2088.0,2087.9,58.27075]
[1617397440228,12.9902,2088.0,2087.9,58.49606767]
[1617397441028,2.90695,2088.5,2087.9,3.13226767]
[1617397441233,84.6584,2089.7,2088.0,53.5454]
[1617397441433,98.26,2089.7,2088.0,53.5454]
[1617397441835,98.26,2089.7,2088.0,55.5454]
[1617397442434,98.26,2089.7,2088.7,2.90695]
[1617397443633,97.16,2089.7,2088.7,2.90695]
[1617397444436,2.90695,2088.8,2088.7,2.90695]
[1617397444637,91.44575,2089.7,2088.7,2.90695]
[1617397446444,2.90695,2088.8,2088.7,2.90695]
[1617397447039,2.90695,2088.8,2088.0,53.5454]
[1617397447245,4.80655,2088.8,2088.0,53.5454]
[1617397447642,6.80655,2088.8,2088.0,53.5454]
[1617397448439,6.80655,2088.8,2088.2,2.90695]
[1617397448440,3.8996,2088.8,2088.2,2.90695]
[1617397449640,3.8996,2088.8,2088.0,53.5454]
[1617397450642,2.90695,2088.1,2088.0,56.45235]
[1617397454944,2.90695,2088.1,2088.0,2.90695]
[1617397455644,2.90695,2088.1,2087.3,2.571]
[1617397455844,2.90695,2088.1,2087.8,62.4577]
[1617397456245,1.8996,2088.8,2087.8,62.4577]
[1617397456444,60.0279,2088.9,2087.8,62.4577]
[1617397458547,60.0279,2088.9,2088.1,2.90695]
[1617397459250,60.0279,2088.9,2087.8,62.4577]
[1617397460551,60.0279,2088.9,2088.1,2.90695]
[1617397461853,60.0279,2088.9,2087.8,62.4577]
[1617397462052,32.0,2089.6,2087.5,1.5385]
[1617397462251,32.0,2089.6,2087.5,2.6716]
[1617397462453,32.0,2089.6,2088.6,55.9685]
[1617397462652,2.90695,2088.7,2088.6,55.9685]
[1617397466656,2.90695,2088.7,2088.6,58.87545]
[1617397472469,2.90695,2088.7,2088.6,2.90695]
[1617397476470,2.90695,2088.7,2088.6,3.12756708]
[1617397476868,2.90695,2088.7,2088.6,2.90695]
[1617397479772,2.90695,2088.7,2088.6,3.12816145]
[1617397480371,2.90695,2088.7,2088.6,2.90695]
[1617397480671,2.90695,2088.7,2088.6,3.12830647]
[1617397481671,2.90695,2088.7,2088.6,2.90695]
[1617397482073,2.90695,2088.7,2088.6,3.1293522]
[1617397483979,2.90695,2088.7,2088.6,2.90695]
[1617397484779,2.90695,2088.7,2088.6,3.13048171]
[1617397485980,2.90695,2088.7,2088.6,2.90695]
[1617397486580,2.90695,2088.7,2088.6,64.91395]
[1617397487582,2.90695,2088.7,2088.6,65.13804258]
[1617397488281,2.90695,2088.7,2088.6,64.91395]
[1617397488480,2.90695,2088.7,2088.6,65.13810572]